bitfinex/quotes_SOLUSD_20220103
["timestamp","ask_amount","ask_price","bid_price","bid_amount"]
[1641240494831,1.3606,169.61,169.53,13.6012]
[1641240495033,1.61577061,169.61,169.54,8.4]
[1641240495235,1.61577061,169.61,169.57,8.8451]
[1641240495531,1.61577061,169.61,169.58,34.04226567]
[1641240495738,1.61577061,169.61,169.59,6.06439992]
[1641240495931,1.61577061,169.64,169.59,6.06439992]
[1641240496332,1.61577061,169.64,169.59,14.90879992]
[1641240496935,1.61577061,169.65,169.59,14.90879992]
[1641240497134,1.61577061,169.65,169.59,15.16879992]
[1641240497633,1.61577061,169.66,169.59,15.16879992]
[1641240497933,1.61577061,169.66,169.59,14.90879992]
[1641240498133,1.61577061,169.66,169.59,23.30879992]
[1641240498332,1.61577061,169.67,169.59,23.56879992]
[1641240499237,2.90287061,169.68,169.59,23.56879992]
[1641240499436,3.40287061,169.68,169.59,23.30879992]
[1641240499837,2.90287061,169.68,169.59,23.30879992]
[1641240500035,2.90287061,169.68,169.59,23.56879992]
[1641240500235,3.16287061,169.68,169.59,23.56879992]
[1641240500836,3.66287061,169.68,169.59,23.56879992]
[1641240502442,2.0471,169.68,169.59,23.56879992]
[1641240503141,3.66287061,169.68,169.59,23.30879992]
[1641240503342,3.16287061,169.68,169.59,23.56879992]
[1641240503775,25.73317061,169.68,169.59,23.56879992]
[1641240504377,26.23317061,169.68,169.59,23.56879992]
[1641240505673,35.07697061,169.68,169.59,23.56879992]
[1641240506274,1.61577061,169.66,169.59,23.56879992]
[1641240509278,1.61577061,169.7,169.59,23.56879992]
[1641240509486,1.61577061,169.7,169.59,53.47059992]
[1641240509878,1.61577061,169.7,169.59,54.8972936]
[1641240510077,24.534,169.76,169.59,54.8972936]
[1641240510078,1.61577061,169.73,169.59,54.8972936]
[1641240510277,1.61577061,169.73,169.6,72.1898]
[1641240510478,1.87577061,169.73,169.66,8.8395]
[1641240511081,1.87577061,169.73,169.61,8.4]
[1641240511478,1.87577061,169.73,169.61,8.66]
[1641240511679,10.71687061,169.73,169.62,11.50310129]
[1641240511878,11.21687061,169.73,169.62,11.50310129]
[1641240512082,1.61577061,169.71,169.62,11.76310129]
[1641240512478,1.87577061,169.71,169.62,11.76310129]
[1641240512879,1.61577061,169.7,169.62,11.76310129]
[1641240513880,1.61577061,169.71,169.62,11.76310129]
[1641240514479,1.87577061,169.71,169.62,11.76310129]
[1641240515781,2.95007061,169.72,169.62,11.76310129]
[1641240515982,3.21007061,169.72,169.62,11.76310129]
[1641240516781,24.6082,169.71,169.62,11.76310129]
[1641240517082,24.8682,169.71,169.62,11.76310129]
[1641240518086,24.6082,169.71,169.62,11.76310129]
[1641240519788,24.6082,169.71,169.62,11.50310129]
[1641240520493,24.8682,169.71,169.62,11.50310129]
[1641240520689,1.3283,169.7,169.62,11.50310129]
[1641240521290,1.3283,169.7,169.62,11.76310129]
[1641240521693,1.3283,169.7,169.62,8.8423]
[1641240521892,2.0883,169.7,169.62,8.8423]
[1641240522191,2.0883,169.7,169.6,81.0333]
[1641240522421,1.5883,169.7,169.6,8.8435]
[1641240522592,1.5883,169.7,169.57,8.4]
[1641240522792,1.42669368,169.69,169.55,2.21739508]
[1641240522992,1.68669368,169.69,169.55,2.21739508]
[1641240523193,3.80246429,169.69,169.55,2.21739508]
[1641240523394,2.37577061,169.69,169.55,2.21739508]
[1641240523691,8.8448,169.66,169.55,56.5889454]
[1641240524096,9.1048,169.66,169.55,27.46679508]
[1641240524693,9.1048,169.66,169.59,8.8444]
[1641240525495,9.1048,169.66,169.59,9.1044]
[1641240525695,9.1048,169.66,169.55,24.9894]
[1641240525897,18.24657061,169.66,169.51,79.0495]
[1641240526101,23.9134,169.65,169.51,108.536]
[1641240526301,8.8474,169.61,169.51,108.536]
[1641240526498,9.1074,169.61,169.51,108.536]
[1641240526901,9.1074,169.61,169.54,8.8466]
[1641240527300,0.26,169.61,169.54,8.8466]
[1641240527508,10.3722,169.63,169.54,8.8466]
[1641240528307,1.2658,169.63,169.54,8.8466]
[1641240528508,1.61577061,169.64,169.54,9.1066]
[1641240528807,1.61577061,169.63,169.54,9.1066]
[1641240529008,1.61577061,169.63,169.59,8.8435]
[1641240529206,1.61577061,169.63,169.59,11.27429638]
[1641240529408,1.3265,169.66,169.59,11.53429638]
[1641240530233,1.61577061,169.68,169.59,18.62229638]
[1641240530530,1.61577061,169.68,169.59,27.02229638]
[1641240530929,1.61577061,169.69,169.59,27.02229638]
[1641240531330,1.61577061,169.69,169.59,19.93429638]
[1641240531531,1.87577061,169.69,169.59,19.93429638]
[1641240532132,1.2766,169.68,169.59,19.93429638]
[1641240532333,10.1204,169.68,169.59,19.93429638]
[1641240532537,10.3804,169.68,169.59,19.93429638]
[1641240533435,3.67137575,169.57,169.56,29.4792]
[1641240533742,10.38637575,169.57,169.36,46.81333935]
[1641240533939,10.38637575,169.57,169.46,8.4]
[1641240534133,10.38637575,169.57,169.51,8.8484]
[1641240534334,10.64637575,169.57,169.44,9.7437]
[1641240534539,10.64637575,169.57,169.44,32.70683068]
[1641240534735,19.49617575,169.57,169.44,9.7437]
[1641240534934,19.49617575,169.57,169.44,1.3437]
[1641240535142,25.56129368,169.56,169.45,8.8508]
[1641240535334,26.89909368,169.56,169.41,8.4]
[1641240535535,1.42669368,169.55,169.41,8.4]
[1641240535734,8.8523,169.52,169.41,11.42800677]
[1641240536136,9.1123,169.52,169.41,11.42800677]
[1641240536436,1.61577061,169.53,169.44,36.86908941]
[1641240537437,25.3456,169.54,169.44,36.86908941]
[1641240538038,25.3456,169.54,169.44,37.12908941]
[1641240540641,24.3837,169.55,169.44,45.52908941]
[1641240543045,24.6437,169.55,169.44,45.52908941]
[1641240543245,24.6437,169.55,169.44,17.2515]
[1641240543446,26.57039368,169.55,169.41,3.02800677]
[1641240543646,26.57039368,169.55,169.42,8.8525]
[1641240543647,22.6641,169.54,169.42,8.8525]
[1641240543845,23.1641,169.54,169.42,8.8525]
[1641240544045,1.42669368,169.53,169.42,8.8525]
[1641240544346,11.50899368,169.53,169.42,8.8525]
[1641240544550,10.0823,169.53,169.42,8.8525]
[1641240544750,10.3423,169.53,169.42,8.8525]
[1641240545246,1.2301,169.53,169.42,8.8525]
[1641240545449,1.2301,169.53,169.42,9.1125]
[1641240545647,1.2301,169.53,169.43,24.72276954]
[1641240545847,1.2301,169.53,169.46,8.8504]
[1641240546046,1.2301,169.53,169.46,0.26]
[1641240546047,1.4901,169.53,169.46,0.26]
[1641240546647,1.4901,169.53,169.41,27.71120677]
[1641240546847,1.2301,169.53,169.41,27.71120677]
[1641240547147,1.2301,169.53,169.45,8.851]
[1641240547549,1.4901,169.53,169.45,9.111]
[1641240547850,1.4901,169.53,169.45,0.26]
[1641240548052,1.4901,169.53,169.41,57.21390677]
[1641240548248,1.2301,169.53,169.41,57.21390677]
[1641240548650,11.69777061,169.53,169.44,8.8514]
[1641240549149,2.84587061,169.53,169.44,8.8514]
[1641240549348,1.2301,169.53,169.44,8.8514]
[1641240549948,104.00777061,169.54,169.44,8.8514]
[1641240550148,22.6641,169.54,169.49,8.8489]
[1641240550352,25.99947061,169.55,169.5,2.6478793]
[1641240550652,1.61577061,169.55,169.5,2.9078793]
[1641240551054,3.67137575,169.57,169.5,2.9078793]
[1641240551752,3.67137575,169.57,169.5,9.1082]
[1641240552960,4.17137575,169.57,169.5,9.1082]
[1641240553162,3.67137575,169.57,169.5,9.1082]
[1641240557495,3.67137575,169.57,169.5,0.26]
[1641240557692,3.67137575,169.57,169.48,8.8493]
[1641240557895,4.43137575,169.57,169.44,37.8976]
[1641240558097,23.5835,169.56,169.44,8.4]
[1641240558398,1.2488,169.55,169.44,11.12973792]
[1641240558798,1.61577061,169.56,169.45,24.7714253]
[1641240558996,1.61577061,169.56,169.46,8.4]
[1641240559495,1.61577061,169.54,169.46,115.09669368]
[1641240559694,7.061e-05,169.54,169.47,1.42669368]
[1641240559897,7.061e-05,169.54,169.5,8.8467]
[1641240560196,3.67137575,169.57,169.52,2.92951933]
[1641240560400,3.67137575,169.57,169.53,8.4]
[1641240560595,3.67137575,169.57,169.53,8.66]
[1641240560896,3.67137575,169.57,169.54,8.8462]
[1641240561100,3.67137575,169.57,169.54,9.1062]
[1641240562195,3.67137575,169.57,169.55,6.06439992]
[1641240562595,3.67137575,169.57,169.55,6.32439992]
[1641240563399,3.67137575,169.57,169.53,8.4]
[1641240563600,3.67137575,169.57,169.52,8.8473]
[1641240563797,3.67137575,169.57,169.5,8.4]
[1641240564297,3.43137575,169.57,169.49,2.33219459]
[1641240564797,3.43137575,169.57,169.5,8.8483]
[1641240564997,3.43137575,169.57,169.5,9.1083]
[1641240565599,3.17137575,169.57,169.5,9.1083]
[1641240565898,3.17137575,169.57,169.5,17.5083]
[1641240566699,3.17137575,169.57,169.51,26.13801852]
[1641240566901,3.17137575,169.57,169.52,8.4]
[1641240567100,3.17137575,169.57,169.54,8.8463]
[1641240567300,3.17137575,169.57,169.55,2.20161489]
[1641240567500,3.17137575,169.57,169.55,5.49381486]
[1641240568105,3.17137575,169.57,169.55,12.13829997]
[1641240569406,3.17137575,169.57,169.56,3.03219995]
[1641240569607,3.17137575,169.57,169.56,3.29219995]
[1641240572507,3.17137575,169.57,169.56,0.26]
[1641240572707,3.17137575,169.57,169.55,3.29219997]
[1641240572909,3.17137575,169.57,169.55,3.03219997]
[1641240573108,3.17137575,169.57,169.56,3.03219995]
[1641240575811,3.17137575,169.57,169.56,12.13789995]
[1641240576014,23.1169,169.66,169.57,29.65567088]
[1641240576215,23.1169,169.66,169.59,2.95739867]
[1641240576415,1.3552,169.67,169.58,8.4]
[1641240576614,1.3552,169.67,169.59,0.26]
[1641240576814,1.3552,169.67,169.56,8.66]
[1641240577013,10.1994,169.67,169.59,8.8442]
[1641240577216,10.1994,169.67,169.56,8.66]
[1641240577515,24.1077,169.66,169.57,2.98628751]
[1641240577915,24.1077,169.66,169.57,3.24628751]
[1641240578316,32.9527,169.66,169.58,8.8443]
[1641240578517,33.2127,169.66,169.58,8.8443]
[1641240578921,33.2127,169.66,169.58,9.1043]
[1641240579119,33.2127,169.66,169.58,8.8443]
[1641240580024,33.2127,169.66,169.57,12.09168751]
[1641240581220,33.2127,169.66,169.54,8.4]
[1641240581426,8.8472,169.62,169.54,8.4]
[1641240581620,5.684,169.62,169.54,8.4]
[1641240581820,5.944,169.62,169.51,8.4]
[1641240582021,5.944,169.62,169.51,8.66]
[1641240582221,23.6982,169.65,169.52,2.34839364]
[1641240582450,25.7561,169.64,169.54,8.8465]
[1641240582621,8.8471,169.62,169.54,8.8465]
[1641240582821,8.8471,169.62,169.54,9.1065]
[1641240583023,9.1071,169.62,169.54,8.8465]
[1641240583222,9.1071,169.62,169.52,0.26]
[1641240583427,24.1671,169.61,169.49,62.1812]
[1641240583722,24.1671,169.61,169.53,8.8475]
[1641240583723,33.0144,169.61,169.53,8.8475]
[1641240583927,34.6267,169.61,169.53,8.8475]
[1641240584123,34.6267,169.61,169.53,9.1075]
[1641240588331,34.6267,169.61,169.52,2.40639974]
[1641240589431,34.6267,169.61,169.52,11.25449974]
[1641240589631,34.6267,169.61,169.52,11.51449974]
[1641240590659,34.6267,169.61,169.52,8.8481]
[1641240590859,41.3857,169.61,169.5,8.8488]
[1641240591861,41.3857,169.61,169.5,11.68768991]
[1641240592066,35.1267,169.61,169.5,11.94768991]
[1641240596769,35.1267,169.61,169.5,8.8488]
[1641240596968,35.1267,169.61,169.48,86.872]
[1641240597172,35.1267,169.61,169.48,8.8499]
[1641240597770,35.1267,169.61,169.48,11.81422093]
[1641240598772,35.1267,169.61,169.48,12.07422093]
[1641240601674,35.1267,169.61,169.48,9.1099]
[1641240602374,35.1267,169.61,169.48,8.8499]
[1641240602572,35.1267,169.61,169.46,11.22782594]
[1641240602773,8.4,169.6,169.46,2.37682594]
[1641240602976,8.8517,169.53,169.46,1.87682594]
[1641240603474,9.1117,169.53,169.46,1.87682594]
[1641240604073,8.8517,169.53,169.46,2.13682594]
[1641240604273,10.1053,169.54,169.46,2.13682594]
[1641240605476,10.1053,169.54,169.46,0.26]
[1641240605678,10.1053,169.54,169.46,8.8512]
[1641240606077,10.1053,169.54,169.46,9.1112]
[1641240606477,10.6053,169.54,169.46,9.1112]
[1641240607078,10.6053,169.54,169.47,2.36495977]
[1641240607281,10.1053,169.54,169.47,2.36495977]
[1641240607479,1.2549,169.54,169.49,8.8497]
[1641240607681,22.5822,169.55,169.5,2.54842089]
[1641240608080,22.5822,169.55,169.5,2.80842089]
[1641240608279,22.5822,169.55,169.5,0.26]
[1641240608480,22.5822,169.55,169.46,24.3058]
[1641240609180,22.5822,169.55,169.47,3.04903924]
[1641240609580,22.5822,169.55,169.5,8.8488]
[1641240609981,22.5822,169.55,169.5,9.1088]
[1641240610182,22.5822,169.55,169.5,12.05341245]
[1641240610382,22.5822,169.55,169.5,41.13879661]
[1641240611381,22.5822,169.55,169.5,11.79341245]
[1641240611782,23.0822,169.55,169.5,11.79341245]
[1641240611982,22.5822,169.55,169.5,11.79341245]
[1641240612584,1.2464,169.56,169.5,11.79341245]
[1641240612886,1.2875,169.59,169.5,19.57241245]
[1641240613183,23.5367,169.61,169.56,8.8461]
[1641240613384,24.8577,169.61,169.57,2.65134079]
[1641240613584,1.321,169.61,169.57,2.91134079]
[1641240613789,76.5697,169.64,169.57,2.91134079]
[1641240614585,76.5697,169.64,169.58,8.8451]
[1641240615084,49.7252,169.65,169.58,9.1051]
[1641240615284,24.868,169.65,169.58,9.1051]
[1641240615685,8.8438,169.68,169.58,9.1051]
[1641240615886,1.2575,169.69,169.58,9.1051]
[1641240616284,1.7575,169.69,169.58,9.1051]
[1641240616485,2.0175,169.69,169.58,9.1051]
[1641240617487,10.8606,169.69,169.58,9.1051]
[1641240617886,23.6758,169.68,169.58,9.1051]
[1641240618186,23.9358,169.68,169.58,9.1051]
[1641240618586,32.7797,169.68,169.58,9.1051]
[1641240618786,32.5197,169.68,169.58,9.1051]
[1641240618986,1.3236,169.67,169.58,9.1051]
[1641240620588,10.1676,169.67,169.58,9.1051]
[1641240620788,10.1676,169.67,169.58,8.8451]
[1641240620989,10.9276,169.67,169.58,8.8451]
[1641240621190,10.9276,169.67,169.56,8.8455]
[1641240621591,10.9276,169.67,169.54,8.4]
[1641240621793,10.9276,169.67,169.55,33.43082392]
[1641240622993,10.9276,169.67,169.55,33.69082392]
[1641240623391,10.9276,169.67,169.56,8.8459]
[1641240623594,10.9276,169.67,169.56,9.1059]
[1641240624692,10.9276,169.67,169.56,8.8459]
[1641240625995,10.9276,169.67,169.56,9.1059]
[1641240627095,10.6676,169.67,169.56,9.1059]
[1641240627702,10.1676,169.67,169.56,9.1059]
[1641240630100,10.4276,169.67,169.56,9.1059]
[1641240630305,10.1676,169.67,169.56,9.1059]
[1641240632429,1.3236,169.67,169.56,9.1059]
[1641240634741,33.2941,169.71,169.56,17.5059]
[1641240634937,24.8941,169.71,169.58,2.30063932]
[1641240635134,24.8941,169.71,169.64,8.8418]
[1641240635338,4.43599269,169.72,169.65,3.00023297]
[1641240635533,4.43599269,169.72,169.65,3.26023297]
[1641240635934,1.2402,169.72,169.65,3.26023297]
[1641240637741,1.2402,169.72,169.63,26.77138513]
[1641240637945,1.5002,169.72,169.63,0.26]
[1641240638141,2.0002,169.72,169.61,8.4]
[1641240638344,2.0002,169.72,169.61,8.66]
[1641240638642,2.0002,169.72,169.61,11.05518017]
[1641240638842,2.0002,169.72,169.61,43.74544367]
[1641240638843,24.3944,169.71,169.61,43.74544367]
[1641240639042,24.6544,169.71,169.61,43.48544367]
[1641240639243,25.1544,169.71,169.61,43.48544367]
[1641240639942,1.266,169.7,169.61,43.48544367]
[1641240640344,1.526,169.7,169.61,41.3502635]
[1641240640745,8.843,169.69,169.61,41.3502635]
[1641240640945,9.103,169.69,169.61,41.3502635]
[1641240641345,8.843,169.69,169.61,43.58950978]
[1641240641543,1.266,169.7,169.61,43.58950978]
[1641240643443,24.3944,169.71,169.61,43.58950978]
[1641240648352,8.8402,169.74,169.61,43.58950978]
[1641240648551,77.9433,169.75,169.61,68.39430978]
[1641240648754,77.9433,169.75,169.62,1.3312]
[1641240648950,78.4433,169.75,169.68,8.8395]
[1641240649350,78.4433,169.75,169.68,9.0995]
[1641240649981,87.2829,169.75,169.68,37.68145139]
[1641240651483,87.2829,169.75,169.68,8.8395]
[1641240651685,87.2829,169.75,169.61,8.4]
[1641240651882,32.59369368,169.74,169.59,24.6769]
[1641240652081,8.8428,169.69,169.59,24.6769]
[1641240652480,9.1028,169.69,169.6,31.04216421]
[1641240652680,9.1028,169.69,169.6,33.98410375]
[1641240652884,1.3466,169.68,169.62,8.8427]
[1641240653082,1.6066,169.68,169.62,8.8427]
[1641240653284,1.3466,169.68,169.62,9.1027]
[1641240653484,1.6066,169.68,169.62,9.1027]
[1641240653690,10.4498,169.68,169.62,9.1027]
[1641240654085,10.4498,169.68,169.62,8.8427]
[1641240654785,10.1898,169.68,169.62,8.8427]
[1641240654987,10.4498,169.68,169.62,8.8427]
[1641240655393,10.4498,169.68,169.62,9.1027]
[1641240656588,10.1898,169.68,169.62,9.1027]
[1641240656787,10.4498,169.68,169.62,9.1027]
[1641240657587,10.1898,169.68,169.62,9.1027]
[1641240657890,1.3466,169.68,169.62,9.1027]
[1641240658088,1.8466,169.68,169.63,2.79678329]
[1641240658489,1.8466,169.68,169.63,11.89898329]
[1641240659088,1.3466,169.68,169.63,11.89898329]
[1641240660190,24.8651,169.71,169.63,11.89898329]
[1641240660390,1.264,169.72,169.63,11.89898329]
[1641240662390,10.1049,169.72,169.63,11.89898329]
[1641240662591,10.1049,169.72,169.63,25.59198329]
[1641240662592,1.264,169.72,169.63,25.59198329]
[1641240664392,23.7989,169.74,169.63,25.59198329]
[1641240664596,76.6823,169.75,169.63,25.59198329]
[1641240664795,26.2276,169.77,169.63,50.48718329]
[1641240664995,26.2276,169.77,169.63,125.57648329]
[1641240665607,26.2276,169.77,169.7,8.8374]
[1641240665796,26.2276,169.77,169.71,28.67398564]
[1641240665996,26.2276,169.77,169.71,28.93398564]
[1641240666797,26.2276,169.77,169.71,26.13425743]
[1641240667595,26.2276,169.77,169.73,8.8371]
[1641240668198,26.2276,169.77,169.71,25.87425743]
[1641240669400,26.2276,169.77,169.71,34.71255743]
[1641240669800,26.2276,169.77,169.71,34.97255743]
[1641240670603,26.2276,169.77,169.73,8.8373]
[1641240671003,26.2276,169.77,169.73,9.0973]
[1641240675711,75.5635,169.81,169.74,2.88923273]
[1641240675912,25.8891,169.81,169.74,2.88923273]
[1641240676113,1.2826,169.81,169.77,8.8346]
[1641240676332,23.7387,169.85,169.77,8.8346]
[1641240676530,23.7387,169.85,169.77,9.0946]
[1641240676531,24.9792,169.85,169.77,9.0946]
[1641240676938,33.8135,169.85,169.77,11.75149566]
[1641240677333,24.9792,169.85,169.77,9.0946]
[1641240677532,24.9792,169.85,169.75,8.8359]
[1641240677732,23.0036,169.82,169.75,8.8359]
[1641240677948,23.5036,169.82,169.75,8.8359]
[1641240678532,23.7636,169.82,169.75,8.8359]
[1641240678734,8.8363,169.81,169.75,8.8359]
[1641240679436,23.2636,169.82,169.75,9.0959]
[1641240679636,23.0036,169.82,169.75,9.0959]
[1641240679835,23.2636,169.82,169.75,9.0959]
[1641240680636,32.0995,169.82,169.75,9.0959]
[1641240680837,31.8395,169.82,169.75,9.0959]
[1641240681737,31.8395,169.82,169.76,2.19629782]
[1641240681940,23.0036,169.82,169.76,2.45629782]
[1641240683541,23.0036,169.82,169.77,8.835]
[1641240683939,23.0036,169.82,169.77,9.095]
[1641240684145,23.0036,169.82,169.78,25.42201401]
[1641240684341,1.2339,169.84,169.78,25.42201401]
[1641240684543,1.2339,169.84,169.79,2.35999863]
[1641240684941,1.2339,169.84,169.79,2.61999863]
[1641240685342,1.2339,169.84,169.79,0.26]
[1641240685542,1.2339,169.84,169.78,25.68201401]
[1641240686345,1.2339,169.84,169.79,3.01891985]
[1641240686542,1.2339,169.84,169.79,3.27891985]
[1641240686743,1.2339,169.84,169.8,8.8337]
[1641240687045,1.2339,169.84,169.8,9.0937]
[1641240688250,1.2339,169.84,169.78,8.8343]
[1641240688642,1.2339,169.84,169.78,9.0943]
[1641240689053,1.2339,169.84,169.78,11.96499661]
[1641240689249,1.2339,169.84,169.78,11.70499661]
[1641240689654,10.0689,169.84,169.78,11.70499661]
[1641240690550,1.2339,169.84,169.78,11.70499661]
[1641240691050,1.2339,169.84,169.78,11.96499661]
[1641240697959,1.2339,169.84,169.78,9.0943]
[1641240698160,10.0688,169.84,169.78,8.8343]
[1641240698360,10.8288,169.84,169.75,8.8359]
[1641240698559,23.0806,169.83,169.75,8.8359]
[1641240698961,23.3406,169.83,169.75,8.8359]
[1641240699561,8.8363,169.82,169.75,8.8359]
[1641240699762,10.0891,169.82,169.74,8.8369]
[1641240699965,10.3491,169.82,169.74,8.8369]
[1641240700459,11.99860641,169.82,169.74,8.8369]
[1641240701261,11.99860641,169.82,169.73,8.8373]
[1641240701560,8.8376,169.79,169.73,8.8373]
[1641240701962,9.0976,169.79,169.72,30.98023288]
[1641240702882,8.8376,169.79,169.72,31.24023288]
[1641240703083,10.1303,169.8,169.73,2.94511333]
[1641240703482,1.2936,169.8,169.73,3.20511333]
[1641240704485,1.2936,169.8,169.75,8.8359]
[1641240705686,10.1303,169.8,169.74,8.8369]
[1641240706088,10.3903,169.8,169.71,1.2885]
[1641240706287,23.3185,169.79,169.71,1.5485]
[1641240706687,23.3185,169.79,169.75,8.8363]
[1641240706988,23.3185,169.79,169.75,40.28906811]
[1641240707188,1.2936,169.8,169.75,40.28906811]
[1641240708287,8.8365,169.81,169.75,40.28906811]
[1641240709588,1.2361,169.82,169.75,40.28906811]
[1641240710088,1.2361,169.82,169.75,39.78906811]
[1641240710693,10.0718,169.82,169.75,39.78906811]
[1641240712993,10.3318,169.82,169.68,37.8574]
[1641240713191,23.5936,169.81,169.69,25.2972]
[1641240713592,23.8536,169.81,169.69,25.2972]
[1641240713792,23.8536,169.81,169.7,26.50267556]
[1641240714093,23.8536,169.81,169.74,3.02828947]
[1641240714295,8.8372,169.79,169.74,3.02828947]
[1641240714492,9.0972,169.79,169.73,8.8373]
[1641240715494,9.0972,169.79,169.73,7.3373]
[1641240715693,8.8372,169.79,169.73,7.3373]
[1641240715896,8.8366,169.8,169.73,7.3373]
[1641240716292,8.8366,169.8,169.73,7.5973]
[1641240717295,35.31130641,169.81,169.73,7.5973]
[1641240717895,35.81130641,169.81,169.73,7.5973]
[1641240718099,36.07130641,169.81,169.73,7.5973]
[1641240718298,34.1618,169.81,169.73,7.5973]
[1641240718896,33.6618,169.81,169.73,7.5973]
[1641240719098,33.9218,169.81,169.73,7.3373]
[1641240719596,33.6618,169.81,169.73,7.3373]
[1641240719796,33.6618,169.81,169.73,7.5973]
[1641240720604,34.4218,169.81,169.73,7.3373]
[1641240720999,33.9218,169.81,169.73,7.3373]
[1641240721699,35.57130641,169.81,169.73,7.3373]
[1641240722200,33.9218,169.81,169.73,7.3373]
[1641240722401,34.4218,169.81,169.73,7.3373]
[1641240722601,34.4218,169.81,169.72,8.8377]
[1641240723001,34.4218,169.81,169.72,9.0977]
[1641240723605,36.07130641,169.81,169.72,9.0977]
[1641240723803,36.07130641,169.81,169.7,24.21012939]
[1641240724004,36.07130641,169.81,169.67,25.8603]
[1641240724204,1.42669368,169.8,169.67,25.8603]
[1641240724403,8.8399,169.74,169.67,25.8603]
[1641240724608,8.8399,169.74,169.64,32.5775]
[1641240724907,8.8399,169.74,169.68,8.8397]
[1641240725303,8.8399,169.74,169.68,9.0997]
[1641240728308,24.1431,169.77,169.68,9.0997]
[1641240728731,1.64950641,169.78,169.68,9.0997]
[1641240729205,1.64950641,169.78,169.69,8.4]
[1641240729406,1.64950641,169.8,169.73,8.836]
[1641240729605,1.64950641,169.8,169.74,30.27779341]
[1641240730006,1.64950641,169.8,169.74,30.53779341]
[1641240730407,10.1904,169.83,169.76,8.8355]
[1641240730608,10.1904,169.83,169.77,2.61514698]
[1641240731006,10.4504,169.83,169.77,2.61514698]
[1641240731607,10.4504,169.83,169.76,8.8355]
[1641240732106,10.4504,169.83,169.75,8.836]
[1641240732306,10.9504,169.83,169.75,8.836]
[1641240732708,10.9504,169.83,169.75,11.65074014]
[1641240733708,10.6904,169.83,169.75,11.65074014]
[1641240733907,10.1904,169.83,169.75,11.91074014]
[1641240735914,10.6904,169.83,169.75,11.91074014]
[1641240736112,10.1904,169.83,169.75,11.91074014]
[1641240738518,1.3549,169.83,169.75,11.91074014]
[1641240738923,31.6512,169.84,169.75,11.91074014]
[1641240739115,1.64950641,169.86,169.75,11.91074014]
[1641240739918,10.1243,169.87,169.75,11.91074014]
[1641240740118,1.2908,169.87,169.75,11.91074014]
[1641240740617,1.7908,169.87,169.75,11.91074014]
[1641240740818,1.2908,169.87,169.75,11.91074014]
[1641240741217,1.2908,169.87,169.75,36.19894014]
[1641240741618,8.8337,169.86,169.75,36.19894014]
[1641240742020,9.0937,169.86,169.75,36.19894014]
[1641240742221,8.8337,169.86,169.75,36.19894014]
[1641240742420,24.8525,169.85,169.75,36.19894014]
[1641240747024,24.8525,169.85,169.75,44.59894014]
[1641240752331,33.6866,169.85,169.75,44.59894014]
[1641240752933,34.1866,169.85,169.75,17.236]
[1641240753133,34.4466,169.85,169.75,17.236]
[1641240753329,34.4466,169.85,169.75,8.836]
[1641240753730,36.09610641,169.85,169.75,8.836]
[1641240753932,8.8358,169.82,169.76,2.35342903]
[1641240754430,9.5958,169.82,169.76,2.35342903]
[1641240755530,9.5958,169.82,169.75,8.836]
[1641240755831,9.3358,169.82,169.75,9.096]
[1641240756832,9.3358,169.82,169.76,3.01692757]
[1641240757032,9.3358,169.82,169.76,3.27692757]
[1641240757931,0.5,169.82,169.76,12.11222757]
[1641240758331,9.3352,169.83,169.76,12.11222757]
[1641240758936,8.8352,169.83,169.76,12.11222757]
[1641240759135,9.3352,169.83,169.76,12.11222757]
[1641240762640,8.8352,169.83,169.76,12.11222757]
[1641240763240,9.3352,169.83,169.76,12.11222757]
[1641240763844,8.8352,169.83,169.76,12.11222757]
[1641240764248,9.3352,169.83,169.76,12.11222757]
[1641240764649,8.8352,169.83,169.76,12.11222757]
[1641240765851,9.3352,169.83,169.76,12.11222757]
[1641240768274,8.8352,169.83,169.76,12.11222757]
[1641240768475,9.3352,169.83,169.76,12.11222757]